[Event "RUS-ch Boys U21 2021"]
[Site "Loo"]
[Date "2021.04.22"]
[Round "2.8"]
[White "Zhafyarov, Adel"]
[Black "Vetokhin, Savva"]
[Result "1/2-1/2"]
[ECO "A45"]
[WhiteElo "2252"]
[BlackElo "2261"]
[Annotator "ChessBase"]
[PlyCount "142"]
[EventDate "2021.04.21"]
[EventType "swiss"]
[EventCountry "RUS"]
[SourceTitle "playchess.com"]
[Source "ChessBase"]
[SourceQuality "1"]
[TimeControl "40/5400+30:1800+30"]

1. d4 {[%emt 0:00:00]} Nf6 {[%emt 0:00:00]} 2. Bf4 {[%emt 0:00:00]} e6 {[%emt 0:00:00]} 3. e3 {[%emt 0:00:00]} c5 {[%emt 0:00:03]} 4. c3 {[%emt 0:00:00]} cxd4 {[%emt 0:00:06]} 5. exd4 {[%emt 0:00:00]} b6 {[%emt 0:00:11]} 6. Nd2 {[%emt 0:01:17]} Be7 {[%emt 0:00:47]} 7. Bd3 {[%emt 0:05:42]} Bb7 {[%emt 0:11:33]} 8. Ngf3 {[%emt 0:00:32]} O-O {[%emt 0:01:14]} 9. h3 {[%emt 0:01:14]} d6 {[%emt 0:00:23]} 10. O-O {[%emt 0:03:10]} Ba6 {[%emt 0:00:21]} 11. Bxa6 {[%emt 0:01:15]} Nxa6 {[%emt 0:00:07]} 12. a4 {[%emt 0:00:07]} Nc7 {[%emt 0:00:16]} 13. Qe2 {[%emt 0:01:04]} a6 {[%emt 0:00:36]} 14. Nc4 {[%emt 0:00:47]} Nfd5 {[%emt 0:00:15]} 15. Bd2 {[%emt 0:02:04]} b5 {[%emt 0:01:36]} 16. Na5 {[%emt 0:00:18]} Qd7 {[%emt 0:01:05]} 17. b3 {[%emt 0:07:19]} Rfb8 {[%emt 0:10:42]} 18. c4 {[%emt 0:10:56]} bxc4 {[%emt 0:00:36]} 19. Qxc4 {[%emt 0:00:57]} Rc8 {[%emt 0:03:46]} 20. Rfc1 {[%emt 0:15:06]} Ne8 {[%emt 0:06:27]} 21. Qd3 {[%emt 0:01:32]} Ra7 {[%emt 0:18:11]} 22. Rxc8 {[%emt 0:06:30]} Qxc8 {[%emt 0:00:01]} 23. Rc1 {[%emt 0:00:06]} Rc7 {[%emt 0:00:05]} 24. Rxc7 {[%emt 0:00:28]} Nexc7 {[%emt 0:00:02]} 25. Qc4 {[%emt 0:01:09]} f5 {[%emt 0:06:18]} 26. Nc6 {[%emt 0:05:17]} Kf8 {[%emt 0:03:05]} 27. Ba5 {[%emt 0:00:14]} Qb7 {[%emt 0:01:45]} 28. Ne1 {[%emt 0:06:36]} Ke8 {[%emt 0:01:15]} 29. Nd3 {[%emt 0:01:26]} Bf6 {[%emt 0:02:38]} 30. Ncb4 {[%emt 0:06:18]} Kd7 {[%emt 0:03:12]} 31. Bxc7 {[%emt 0:02:55]} Nxc7 {[%emt 0:00:08]} 32. Nf4 {[%emt 0:00:56]} a5 {[%emt 0:01:47]} 33. Nc2 {[%emt 0:00:16]} g6 {[%emt 0:01:49]} 34. Ne2 {[%emt 0:03:35]} d5 {[%emt 0:04:59]} 35. Qc3 {[%emt 0:02:35]} Qc6 {[%emt 0:01:17]} 36. Qd2 {[%emt 0:03:19]} Qb6 {[%emt 0:00:52]} 37. Nc1 {[%emt 0:02:02]} Na6 {[%emt 0:02:59]} 38. Qh6 {[%emt 0:03:43]} Qc6 {[%emt 0:09:32]} 39. Na3 {[%emt 0:00:06]} Ke8 {[%emt 0:03:39]} 40. Ne2 {[%emt 0:00:00]} Qd7 {[%emt 0:00:00]} 41. Nb5 {[%emt 0:02:49]} Nb4 {[%emt 0:07:18]} 42. Qe3 {[%emt 0:02:17]} Qc6 {[%emt 0:02:09]} 43. Qf4 {[%emt 0:02:29]} Qc2 {[%emt 0:02:14]} 44. Qb8+ {[%emt 0:02:03]} Kf7 {[%emt 0:02:52]} 45. Nf4 {[%emt 0:13:18]} Qc6 {[%emt 0:02:37]} 46. g3 {[%emt 0:02:44]} Qd7 {[%emt 0:02:15]} 47. h4 {[%emt 0:03:13]} Nc6 {[%emt 0:01:19]} 48. Qb6 {[%emt 0:00:06]} Bd8 {[%emt 0:03:39]} 49. Qc5 {[%emt 0:00:01]} Be7 {[%emt 0:00:07]} 50. Qc3 {[%emt 0:01:17]} Bd6 {[%emt 0:04:40]} 51. Nd3 {[%emt 0:00:09]} Ke7 {[%emt 0:00:01]} 52. Qd2 {[%emt 0:02:05]} Kf8 {[%emt 0:00:11]} 53. h5 {[%emt 0:01:26]} Kg7 {[%emt 0:00:28]} 54. hxg6 {[%emt 0:01:46]} hxg6 {[%emt 0:00:45]} 55. Qe3 {[%emt 0:00:08]} Qe7 {[%emt 0:02:08]} 56. Nf4 {[%emt 0:01:19]} Bxf4 {[%emt 0:00:09]} 57. Qxf4 {[%emt 0:00:01]} Qd7 {[%emt 0:00:22]} 58. Qe3 {[%emt 0:00:45]} Qe7 {[%emt 0:00:30]} 59. Qc3 {[%emt 0:00:06]} Qd7 {[%emt 0:00:05]} 60. Qc5 {[%emt 0:00:16]} g5 {[%emt 0:00:33]} 61. Nc3 {[%emt 0:01:29]} Kf7 {[%emt 0:00:54]} 62. Nd1 {[%emt 0:00:20]} Qb7 {[%emt 0:00:11]} 63. Ne3 {[%emt 0:00:25]} Ne7 {[%emt 0:00:55]} 64. Qxa5 {[%emt 0:01:59]} Qxb3 {[%emt 0:00:45]} 65. Nf1 {[%emt 0:00:04]} f4 {[%emt 0:01:25]} 66. Qa7 {[%emt 0:01:11]} Kf6 {[%emt 0:00:37]} 67. a5 {[%emt 0:00:15]} Nc6 {[%emt 0:01:27]} 68. Qc5 {[%emt 0:00:31]} Qa4 {[%emt 0:00:05]} 69. Qf8+ {[%emt 0:00:45]} Kg6 {[%emt 0:00:01]} 70. gxf4 {[%emt 0:00:13]} gxf4 {[%emt 0:00:27]} 71. Qxf4 {[%emt 0:00:35]} Qxa5 1/2-1/2

[Event "RUS-ch Boys U21 2021"]
[Site "Loo"]
[Date "2021.04.22"]
[Round "2.10"]
[White "Kyshtymov, Daniil"]
[Black "Golikov, Daniil"]
[Result "0-1"]
[ECO "C07"]
[WhiteElo "2137"]
[BlackElo "2250"]
[Annotator "ChessBase"]
[PlyCount "82"]
[EventDate "2021.04.21"]
[EventType "swiss"]
[EventCountry "RUS"]
[SourceTitle "playchess.com"]
[Source "ChessBase"]
[SourceQuality "1"]
[TimeControl "40/5400+30:1800+30"]

1. e4 {[%emt 0:00:00]} e6 {[%emt 0:00:00]} 2. d4 {[%emt 0:00:00]} d5 {[%emt 0:00:00]} 3. Nd2 {[%emt 0:00:00]} c5 {[%emt 0:00:00]} 4. exd5 {[%emt 0:00:05]} Qxd5 {[%emt 0:00:00]} 5. dxc5 {[%emt 0:00:14]} Bxc5 {[%emt 0:00:41]} 6. Ngf3 {[%emt 0:00:11]} Nf6 {[%emt 0:00:11]} 7. Bc4 {[%emt 0:00:10]} Qc6 {[%emt 0:00:24]} 8. Qe2 {[%emt 0:02:00]} a6 {[%emt 0:17:34]} 9. Nb3 {[%emt 0:03:55]} Nbd7 {[%emt 0:03:27]} 10. Bg5 {[%emt 0:16:44]} b5 {[%emt 0:05:56]} 11. Bd3 {[%emt 0:02:40]} O-O {[%emt 0:10:28]} 12. O-O-O {[%emt 0:12:23]} Bd6 {[%emt 0:05:27]} 13. Kb1 {[%emt 0:06:02]} h6 {[%emt 0:03:01]} 14. h4 {[%emt 0:11:21]} e5 {[%emt 0:10:50]} 15. Bf5 {[%emt 0:19:48]} Re8 {[%emt 0:03:37]} 16. g4 {[%emt 0:12:50]} Bc7 {[%emt 0:15:41]} 17. Be3 {[%emt 0:06:45]} Nf8 {[%emt 0:02:35]} 18. Bxc8 {[%emt 0:02:00]} Raxc8 {[%emt 0:00:02]} 19. g5 {[%emt 0:00:48]} Ng4 {[%emt 0:00:06]} 20. gxh6 {[%emt 0:00:48]} Nxh6 {[%emt 0:00:09]} 21. Rhg1 {[%emt 0:00:47]} Bb6 {[%emt 0:03:53]} 22. Bc1 {[%emt 0:00:50]} Nf5 {[%emt 0:02:15]} 23. h5 {[%emt 0:00:32]} a5 {[%emt 0:05:28]} 24. Rg5 {[%emt 0:00:30]} e4 {[%emt 0:02:14]} 25. Ne1 {[%emt 0:00:32]} Nd6 {[%emt 0:00:38]} 26. Nd4 {[%emt 0:00:33]} Bxd4 {[%emt 0:00:06]} 27. Rxd4 {[%emt 0:00:15]} Ne6 {[%emt 0:00:09]} 28. Rdd5 {[%emt 0:00:42]} Nxg5 {[%emt 0:01:00]} 29. Rxg5 {[%emt 0:00:04]} Re6 {[%emt 0:04:20]} 30. Qg4 {[%emt 0:00:22]} Ne8 {[%emt 0:00:07]} 31. Be3 {[%emt 0:00:55]} Rd8 {[%emt 0:00:31]} 32. Ng2 {[%emt 0:00:42]} Nf6 {[%emt 0:03:18]} 33. Rxg7+ {[%emt 0:00:25]} Kf8 {[%emt 0:00:00]} 34. Qg5 {[%emt 0:00:34]} Rd5 {[%emt 0:00:51]} 35. Qg3 {[%emt 0:00:30]} Rxh5 {[%emt 0:00:53]} 36. Nf4 {[%emt 0:00:29]} Rh1+ {[%emt 0:00:15]} 37. Bc1 {[%emt 0:00:01]} Rd6 {[%emt 0:00:11]} 38. Ng6+ {[%emt 0:01:01]} fxg6 {[%emt 0:00:18]} 39. Qxg6 {[%emt 0:00:01]} Qd5 {[%emt 0:00:02]} 40. b3 {[%emt 0:00:00]} Ne8 {[%emt 0:00:00]} 41. Qg2 {[%emt 0:02:18]} Rxc1+ {[%emt 0:00:54]} 0-1

[Event "RUS-ch Boys U21 2021"]
[Site "Loo"]
[Date "2021.04.22"]
[Round "2.11"]
[White "Akhtariev, Andrey"]
[Black "Babanin, Gleb"]
[Result "1-0"]
[ECO "B20"]
[WhiteElo "2190"]
[BlackElo "2123"]
[Annotator "ChessBase"]
[PlyCount "85"]
[EventDate "2021.04.21"]
[EventType "swiss"]
[EventCountry "RUS"]
[SourceTitle "playchess.com"]
[Source "ChessBase"]
[SourceQuality "1"]
[TimeControl "40/5400+30:1800+30"]

1. e4 {[%emt 0:00:00]} c5 {[%emt 0:00:00]} 2. c4 {[%emt 0:00:05]} Nc6 {[%emt 0:00:09]} 3. Nc3 {[%emt 0:00:05]} d6 {[%emt 0:01:44]} 4. g3 {[%emt 0:00:09]} g6 {[%emt 0:03:57]} 5. Bg2 {[%emt 0:00:06]} Bg7 {[%emt 0:00:16]} 6. Nge2 {[%emt 0:00:11]} Nf6 {[%emt 0:02:57]} 7. O-O {[%emt 0:00:37]} O-O {[%emt 0:00:39]} 8. h3 Rb8 {[%emt 0:11:59]} 9. f4 {[%emt 0:02:27]} Nd7 {[%emt 0:04:49]} 10. d3 {[%emt 0:02:33]} Nd4 {[%emt 0:03:32]} 11. Rb1 {[%emt 0:07:41]} b5 {[%emt 0:07:33]} 12. Kh2 {[%emt 0:01:46]} Nxe2 {[%emt 0:08:58]} 13. Nxe2 {[%emt 0:00:32]} bxc4 {[%emt 0:16:07]} 14. dxc4 {[%emt 0:00:37]} Qa5 {[%emt 0:00:10]} 15. a3 {[%emt 0:01:12]} Qb6 {[%emt 0:00:46]} 16. b3 {[%emt 0:03:44]} Bb7 {[%emt 0:05:18]} 17. Qc2 {[%emt 0:06:35]} Bc6 {[%emt 0:00:40]} 18. Be3 {[%emt 0:05:37]} Qa6 {[%emt 0:01:16]} 19. a4 {[%emt 0:03:42]} Rb6 {[%emt 0:04:52]} 20. Bd2 {[%emt 0:03:00]} Qb7 {[%emt 0:07:28]} 21. a5 {[%emt 0:05:03]} Ra6 {[%emt 0:00:03]} 22. g4 {[%emt 0:00:26]} e6 {[%emt 0:05:08]} 23. Ng3 {[%emt 0:17:39]} d5 {[%emt 0:00:46]} 24. b4 {[%emt 0:00:37]} dxc4 {[%emt 0:04:14]} 25. b5 {[%emt 0:00:28]} Bxb5 {[%emt 0:00:04]} 26. e5 {[%emt 0:00:04]} Rc6 {[%emt 0:00:11]} 27. Ne4 {[%emt 0:05:08]} c3 {[%emt 0:04:03]} 28. Bxc3 {[%emt 0:01:47]} Qa6 {[%emt 0:00:40]} 29. Rfd1 {[%emt 0:00:19]} Rc7 {[%emt 0:00:31]} 30. Rd6 {[%emt 0:00:39]} Bc6 {[%emt 0:00:06]} 31. Nf6+ {[%emt 0:03:25]} Bxf6 {[%emt 0:00:03]} 32. exf6 {[%emt 0:00:03]} Qc8 {[%emt 0:00:32]} 33. Bf1 {[%emt 0:00:40]} Ba8 {[%emt 0:03:12]} 34. Qd2 {[%emt 0:01:27]} Kh8 {[%emt 0:00:33]} 35. Ba6 {[%emt 0:01:46]} Qe8 {[%emt 0:00:27]} 36. Bb5 {[%emt 0:00:22]} Qb8 {[%emt 0:00:47]} 37. Rb2 {[%emt 0:02:58]} Qb7 {[%emt 0:01:19]} 38. Bxd7 {[%emt 0:01:03]} Qh1+ {[%emt 0:00:05]} 39. Kg3 {[%emt 0:00:02]} h5 {[%emt 0:01:16]} 40. f5 {[%emt 0:00:00]} Kh7 {[%emt 0:00:00]} 41. Qe3 {[%emt 0:11:49]} Rg8 {[%emt 0:03:08]} 42. fxe6 {[%emt 0:08:08]} g5 {[%emt 0:00:19]} 43. exf7 {[%emt 0:02:07]} 1-0

[Event "RUS-ch Boys U21 2021"]
[Site "Loo"]
[Date "2021.04.22"]
[Round "2.12"]
[White "Shemyakin, Valeriy"]
[Black "Marchuk, Rostislav"]
[Result "1/2-1/2"]
[ECO "A06"]
[WhiteElo "2168"]
[BlackElo "2080"]
[Annotator "ChessBase"]
[PlyCount "67"]
[EventDate "2021.04.21"]
[EventType "swiss"]
[EventCountry "RUS"]
[SourceTitle "playchess.com"]
[Source "ChessBase"]
[SourceQuality "1"]
[TimeControl "40/5400+30:1800+30"]

1. Nf3 {[%emt 0:01:00]} d5 {[%emt 0:00:00]} 2. g3 {[%emt 0:00:05]} Nf6 {[%emt 0:00:00]} 3. Bg2 {[%emt 0:00:08]} e6 {[%emt 0:00:24]} 4. O-O {[%emt 0:00:08]} c5 {[%emt 0:00:03]} 5. d4 {[%emt 0:00:12]} cxd4 {[%emt 0:00:07]} 6. Nxd4 {[%emt 0:00:06]} e5 {[%emt 0:00:03]} 7. Nb3 {[%emt 0:01:01]} Be6 {[%emt 0:07:37]} 8. c4 {[%emt 0:19:15]} Nc6 {[%emt 0:00:44]} 9. cxd5 {[%emt 0:00:23]} Bxd5 {[%emt 0:00:54]} 10. Nc3 {[%emt 0:00:35]} Bxg2 {[%emt 0:00:39]} 11. Kxg2 {[%emt 0:00:06]} Bb4 {[%emt 0:05:30]} 12. Bd2 {[%emt 0:02:08]} h5 {[%emt 0:09:17]} 13. a3 {[%emt 0:02:56]} Bxc3 {[%emt 0:03:29]} 14. Bxc3 {[%emt 0:00:27]} Nd5 {[%emt 0:02:39]} 15. Rc1 {[%emt 0:01:13]} h4 {[%emt 0:15:03]} 16. e4 {[%emt 0:07:07]} hxg3 {[%emt 0:06:53]} 17. hxg3 {[%emt 0:01:10]} Nf6 {[%emt 0:07:46]} 18. Qf3 {[%emt 0:25:12]} Qd7 {[%emt 0:06:34]} 19. Rh1 {[%emt 0:00:08]} Rxh1 {[%emt 0:00:39]} 20. Rxh1 {[%emt 0:01:16]} O-O-O {[%emt 0:00:11]} 21. Nc5 {[%emt 0:09:47]} Qd6 {[%emt 0:07:05]} 22. b4 {[%emt 0:01:41]} Kb8 {[%emt 0:04:40]} 23. Qe3 {[%emt 0:07:19]} Ka8 {[%emt 0:02:27]} 24. b5 {[%emt 0:10:16]} Nd4 {[%emt 0:01:58]} 25. Bb4 {[%emt 0:00:28]} Nc2 {[%emt 0:10:54]} 26. Qb3 {[%emt 0:00:18]} Nxb4 {[%emt 0:00:33]} 27. axb4 {[%emt 0:00:02]} b6 {[%emt 0:00:58]} 28. Na6 {[%emt 0:00:25]} Qd7 {[%emt 0:01:25]} 29. Rc1 {[%emt 0:04:59]} Rh8 {[%emt 0:00:42]} 30. Qc4 {[%emt 0:02:31]} Qh3+ {[%emt 0:01:22]} 31. Kf3 {[%emt 0:00:01]} Qh5+ {[%emt 0:00:27]} 32. Kg2 {[%emt 0:00:54]} Qh3+ {[%emt 0:00:13]} 33. Kf3 {[%emt 0:00:01]} Qh5+ {[%emt 0:00:23]} 34. Kg2 {[%emt 0:01:00]} 1/2-1/2

[Event "RUS-ch Boys U21 2021"]
[Site "Loo"]
[Date "2021.04.23"]
[Round "3.1"]
[White "Tsvetkov, Andrey"]
[Black "Murzin, Volodar"]
[Result "1-0"]
[ECO "E92"]
[WhiteElo "2404"]
[BlackElo "2478"]
[Annotator "ChessBase"]
[PlyCount "101"]
[EventDate "2021.04.21"]
[EventType "swiss"]
[EventCountry "RUS"]
[SourceTitle "playchess.com"]
[Source "ChessBase"]
[SourceQuality "1"]
[TimeControl "40/5400+30:1800+30"]

1. d4 {[%emt 0:00:00]} Nf6 {[%emt 0:01:45]} 2. c4 {[%emt 0:00:00]} g6 {[%emt 0:00:08]} 3. Nc3 {[%emt 0:00:00]} Bg7 {[%emt 0:00:04]} 4. e4 {[%emt 0:00:00]} d6 {[%emt 0:00:09]} 5. Nf3 {[%emt 0:00:00]} O-O {[%emt 0:00:07]} 6. Be2 {[%emt 0:00:00]} e5 {[%emt 0:01:30]} 7. Be3 {[%emt 0:00:01]} Na6 {[%emt 0:05:38]} 8. O-O {[%emt 0:00:34]} Ng4 {[%emt 0:00:25]} 9. Bg5 {[%emt 0:00:20]} Qe8 {[%emt 0:00:21]} 10. Rc1 {[%emt 0:09:28]} exd4 {[%emt 0:07:29]} 11. Nxd4 {[%emt 0:00:21]} Nxh2 {[%emt 0:01:53]} 12. Re1 {[%emt 0:00:05]} Ng4 {[%emt 0:01:15]} 13. Bxg4 {[%emt 0:06:56]} Bxg4 {[%emt 0:05:26]} 14. Qxg4 {[%emt 0:00:03]} Bxd4 {[%emt 0:00:04]} 15. e5 {[%emt 0:00:21]} Bxe5 {[%emt 0:07:46]} 16. Nd5 {[%emt 0:00:57]} Qe6 {[%emt 0:05:50]} 17. Bf6 {[%emt 0:00:45]} h6 {[%emt 0:12:15]} 18. Qh4 {[%emt 0:07:17]} Kh7 {[%emt 0:04:14]} 19. Rc3 {[%emt 0:15:11]} Qf5 {[%emt 0:09:55]} 20. Bxe5 {[%emt 0:22:18]} g5 {[%emt 0:04:05]} 21. Qh2 {[%emt 0:05:37]} dxe5 {[%emt 0:01:50]} 22. Rf3 {[%emt 0:00:12]} Qg6 {[%emt 0:00:17]} 23. Nf6+ {[%emt 0:00:19]} Kh8 {[%emt 0:00:24]} 24. Qxe5 {[%emt 0:00:36]} Qg7 {[%emt 0:00:27]} 25. Rh3 {[%emt 0:00:46]} Qg6 {[%emt 0:00:31]} 26. Nd7+ {[%emt 0:01:45]} f6 {[%emt 0:00:06]} 27. Nxf8 {[%emt 0:00:11]} Rxf8 {[%emt 0:00:05]} 28. Qe7 {[%emt 0:00:06]} Qg7 {[%emt 0:00:26]} 29. g4 {[%emt 0:03:36]} Nb8 {[%emt 0:00:36]} 30. Qxg7+ {[%emt 0:01:34]} Kxg7 {[%emt 0:00:01]} 31. Re7+ {[%emt 0:00:01]} Rf7 {[%emt 0:00:11]} 32. Rxf7+ {[%emt 0:00:03]} Kxf7 {[%emt 0:00:04]} 33. Rxh6 {[%emt 0:00:02]} Nd7 {[%emt 0:00:23]} 34. Rh7+ {[%emt 0:01:00]} Ke6 {[%emt 0:00:01]} 35. f3 {[%emt 0:00:43]} Kd6 {[%emt 0:00:04]} 36. Kf2 {[%emt 0:00:14]} a5 {[%emt 0:00:13]} 37. Ke3 {[%emt 0:03:17]} b6 {[%emt 0:00:06]} 38. Ke4 {[%emt 0:01:59]} Ke6 {[%emt 0:00:08]} 39. Rh8 {[%emt 0:00:34]} Nc5+ {[%emt 0:00:25]} 40. Kd4 {[%emt 0:00:00]} Kd6 {[%emt 0:00:00]} 41. Rh7 {[%emt 0:05:24]} Nd7 {[%emt 0:00:38]} 42. b3 {[%emt 0:00:25]} Nc5 {[%emt 0:00:17]} 43. Rf7 {[%emt 0:00:52]} Nd7 {[%emt 0:00:08]} 44. a3 {[%emt 0:00:40]} Ke6 {[%emt 0:00:04]} 45. Rh7 {[%emt 0:00:40]} Kd6 {[%emt 0:00:16]} 46. Ke4 {[%emt 0:07:41]} Ke6 {[%emt 0:01:04]} 47. b4 {[%emt 0:00:28]} axb4 {[%emt 0:00:05]} 48. axb4 {[%emt 0:00:01]} c6 {[%emt 0:00:06]} 49. Rh8 {[%emt 0:00:50]} Kd6 {[%emt 0:00:43]} 50. Re8 {[%emt 0:01:05]} Ne5 {[%emt 0:00:11]} 51. Rxe5 {[%emt 0:00:21]} 1-0

[Event "RUS-ch Boys U21 2021"]
[Site "Loo"]
[Date "2021.04.23"]
[Round "3.2"]
[White "Obgolts, Erik"]
[Black "Makoveev, Ilya"]
[Result "1-0"]
[ECO "B56"]
[WhiteElo "2414"]
[BlackElo "2315"]
[Annotator "NA"]
[PlyCount "75"]
[EventDate "2021.04.21"]
[EventType "swiss"]
[EventCountry "RUS"]
[SourceTitle "playchess.com"]
[Source "ChessBase"]
[SourceQuality "1"]
[TimeControl "40/5400+30:1800+30"]

1. e4 {[%emt 0:00:00]} c5 {[%emt 0:00:00]} 2. Nf3 {[%emt 0:00:00]} d6 {[%emt 0:00:00]} 3. d4 {[%emt 0:00:00]} cxd4 {[%emt 0:00:21]} 4. Nxd4 {[%emt 0:00:00]} Nf6 {[%emt 0:00:07]} 5. Nc3 {[%emt 0:00:02]} Bd7 {[%emt 0:03:20]} 6. Bg5 {[%emt 0:04:03]} e6 {[%emt 0:00:49]} 7. Qd3 {[%emt 0:03:38]} Be7 {[%emt 0:18:17]} 8. Ndb5 {[%emt 0:06:32]} O-O {[%emt 0:12:14]} 9. Nxd6 {[%emt 0:03:07]} Qa5 {[%emt 0:15:44]} 10. Bd2 {[%emt 0:06:04]} Qc5 {[%emt 0:01:11]} 11. Ndb5 {[%emt 0:08:18]} Nc6 {[%emt 0:06:09]} 12. Be3 {[%emt 0:03:04]} Qb4 {[%emt 0:02:01]} 13. a3 {[%emt 0:13:49]} Qa5 {[%emt 0:00:10]} 14. O-O-O {[%emt 0:05:07]} Rfd8 {[%emt 0:04:45]} 15. Qc4 {[%emt 0:11:26]} a6 {[%emt 0:03:32]} 16. Nd4 {[%emt 0:06:03]} Ne5 {[%emt 0:03:59]} 17. Qb3 {[%emt 0:00:14]} Rac8 {[%emt 0:05:31]} 18. f3 {[%emt 0:02:38]} b5 {[%emt 0:00:50]} 19. Na2 {[%emt 0:01:58]} Nc4 {[%emt 0:03:25]} 20. Bxc4 {[%emt 0:01:11]} Rxc4 {[%emt 0:00:15]} 21. Kb1 {[%emt 0:05:27]} Rdc8 {[%emt 0:00:42]} 22. Qd3 {[%emt 0:01:19]} e5 {[%emt 0:03:22]} 23. Bd2 {[%emt 0:03:50]} Qc7 {[%emt 0:01:28]} 24. Nb3 {[%emt 0:00:08]} Be6 {[%emt 0:01:02]} 25. Ba5 {[%emt 0:00:23]} Qa7 {[%emt 0:04:30]} 26. Nb4 {[%emt 0:01:38]} Nd7 {[%emt 0:02:48]} 27. Nd5 {[%emt 0:03:32]} Bf8 {[%emt 0:00:07]} 28. c3 {[%emt 0:00:46]} h6 {[%emt 0:01:14]} 29. Bb4 {[%emt 0:00:49]} Nc5 {[%emt 0:01:21]} 30. Qe3 {[%emt 0:01:38]} f5 {[%emt 0:02:49]} 31. Na5 {[%emt 0:02:10]} fxe4 {[%emt 0:01:58]} 32. Nxc4 {[%emt 0:00:07]} bxc4 {[%emt 0:00:07]} 33. Bxc5 {[%emt 0:02:54]} Rxc5 {[%emt 0:01:16]} 34. fxe4 {[%emt 0:01:19]} Qb8 {[%emt 0:01:05]} 35. a4 Qb3 {[%emt 0:00:30]} 36. Rhf1 {[%emt 0:01:23]} Ra5 {[%emt 0:00:30]} 37. Qb6 {[%emt 0:01:03]} Qxa4 {[%emt 0:00:29]} 38. Qxe6+ 1-0

[Event "RUS-ch Boys U21 2021"]
[Site "Loo"]
[Date "2021.04.23"]
[Round "3.3"]
[White "Marchenko, Nikolay"]
[Black "Lobanov, Sergei"]
[Result "0-1"]
[ECO "A45"]
[WhiteElo "2062"]
[BlackElo "2520"]
[Annotator "ChessBase"]
[PlyCount "101"]
[EventDate "2021.04.21"]
[EventType "swiss"]
[EventCountry "RUS"]
[SourceTitle "playchess.com"]
[Source "ChessBase"]
[SourceQuality "1"]
[TimeControl "40/5400+30:1800+30"]

1. d4 {[%emt 0:00:00]} Nf6 {[%emt 0:00:00]} 2. Bf4 {[%emt 0:00:00]} d5 {[%emt 0:00:00]} 3. e3 {[%emt 0:00:44]} c5 {[%emt 0:00:01]} 4. Nc3 {[%emt 0:00:06]} cxd4 {[%emt 0:00:26]} 5. exd4 {[%emt 0:00:05]} Bg4 {[%emt 0:00:19]} 6. Nf3 {[%emt 0:00:34]} Nc6 {[%emt 0:01:19]} 7. Be2 {[%emt 0:05:09]} e6 {[%emt 0:00:28]} 8. Ne5 {[%emt 0:00:22]} Bxe2 {[%emt 0:02:47]} 9. Nxe2 {[%emt 0:00:08]} Nxe5 {[%emt 0:05:56]} 10. dxe5 {[%emt 0:13:58]} Nd7 {[%emt 0:00:05]} 11. O-O {[%emt 0:01:14]} Bc5 {[%emt 0:06:42]} 12. c3 {[%emt 0:04:23]} O-O {[%emt 0:00:20]} 13. Nd4 {[%emt 0:01:56]} Qb6 {[%emt 0:05:37]} 14. Rb1 {[%emt 0:03:16]} Rac8 {[%emt 0:09:51]} 15. Nc2 {[%emt 0:08:38]} Qa6 {[%emt 0:09:38]} 16. a3 {[%emt 0:07:48]} Bb6 {[%emt 0:00:07]} 17. Qg4 {[%emt 0:03:52]} Qd3 {[%emt 0:00:58]} 18. Nb4 {[%emt 0:04:59]} Qg6 {[%emt 0:00:44]} 19. Qxg6 {[%emt 0:02:17]} hxg6 {[%emt 0:01:34]} 20. Rfe1 {[%emt 0:02:00]} Rc4 {[%emt 0:02:13]} 21. Be3 {[%emt 0:02:08]} Bxe3 {[%emt 0:12:29]} 22. Rxe3 {[%emt 0:00:06]} a5 {[%emt 0:00:13]} 23. Nc2 {[%emt 0:03:01]} b5 {[%emt 0:00:05]} 24. Kf1 {[%emt 0:04:41]} Rfc8 {[%emt 0:00:17]} 25. f3 {[%emt 0:00:49]} Kf8 {[%emt 0:04:01]} 26. g3 {[%emt 0:01:50]} g5 {[%emt 0:00:29]} 27. Ke2 {[%emt 0:01:34]} Ke7 {[%emt 0:00:06]} 28. Kd2 {[%emt 0:00:23]} Rh8 {[%emt 0:01:01]} 29. Re2 {[%emt 0:01:57]} Rb8 {[%emt 0:04:46]} 30. Re3 {[%emt 0:03:44]} Rcc8 {[%emt 0:00:21]} 31. Re2 {[%emt 0:06:01]} Nc5 {[%emt 0:00:29]} 32. Rf1 {[%emt 0:00:56]} Nb3+ {[%emt 0:01:52]} 33. Kd3 {[%emt 0:00:14]} Rh8 {[%emt 0:09:42]} 34. Rg2 {[%emt 0:01:45]} f6 {[%emt 0:06:13]} 35. Re1 {[%emt 0:01:22]} Kd7 {[%emt 0:04:14]} 36. Rf2 {[%emt 0:01:28]} Rh3 {[%emt 0:00:38]} 37. exf6 {[%emt 0:06:33]} gxf6 {[%emt 0:00:04]} 38. Nd4 {[%emt 0:00:23]} Nc5+ {[%emt 0:02:30]} 39. Ke3 {[%emt 0:00:07]} e5 {[%emt 0:04:25]} 40. Nc2 {[%emt 0:00:00]} f5 {[%emt 0:00:00]} 41. Rd1 {[%emt 0:09:10]} Ke6 {[%emt 0:05:36]} 42. Rg2 {[%emt 0:00:29]} Rbh8 {[%emt 0:02:20]} 43. Rdd2 {[%emt 0:00:50]} Rxh2 {[%emt 0:00:18]} 44. Rxh2 {[%emt 0:01:33]} f4+ {[%emt 0:00:05]} 45. gxf4 {[%emt 0:00:02]} gxf4+ {[%emt 0:00:19]} 46. Kf2 {[%emt 0:00:04]} Rxh2+ {[%emt 0:00:05]} 47. Ke1 {[%emt 0:00:03]} Nd3+ {[%emt 0:00:47]} 48. Rxd3 {[%emt 0:00:49]} Rxc2 {[%emt 0:00:03]} 49. Rd2 {[%emt 0:00:27]} Rxd2 {[%emt 0:00:24]} 50. Kxd2 {[%emt 0:00:04]} a4 {[%emt 0:00:05]} 51. Kd1 0-1